fUST/lending_fUST_20250718
["ID","MTS","AMOUNT","RATE_DAILY","PERIOD"]
[372900493,1752796245830,-460.0,0.00018904,2]
[372900495,1752796245840,-2622.99,0.00018904,2]
[372900497,1752796245849,-927.19,0.00018904,2]
[372900498,1752796245858,-460.0,0.00018904,2]
[372900500,1752796245868,-460.0,0.00018904,2]
[372900502,1752796245877,-496.21,0.00018904,2]
[372900504,1752796245887,-2043.46,0.00018904,2]
[372900506,1752796245897,-460.0,0.00018904,2]
[372900508,1752796245907,-1339.2,0.00018904,2]
[372900510,1752796245916,-460.0,0.00018904,2]
[372900511,1752796245925,-460.0,0.00018904,2]
[372900513,1752796245935,-460.0,0.00018904,2]
[372900515,1752796245945,-641.51,0.00018904,2]
[372900517,1752796245954,-1548.76,0.00018904,2]
[372900519,1752796245963,-460.0,0.00018904,2]
[372900520,1752796245973,-1390.78,0.00018904,2]
[372900521,1752796245982,-460.0,0.00018904,2]
[372900522,1752796245991,-460.0,0.00018904,2]
[372900523,1752796246000,-2635.32,0.00018904,2]
[372900525,1752796246009,-460.0,0.00018904,2]
[372900527,1752796246019,-460.0,0.00018904,2]
[372900529,1752796246028,-468.77,0.00018904,2]
[372900530,1752796246038,-4935.59,0.00018904,2]
[372900532,1752796246047,-684.76,0.00018904,2]
[372900534,1752796246057,-460.0,0.00018904,2]
[372900536,1752796246068,-460.0,0.00018904,2]
[372900538,1752796246078,-460.0,0.00018904,2]
[372900540,1752796246088,-460.0,0.00018904,2]
[372900542,1752796246097,-460.0,0.00018904,2]
[372900545,1752796246107,-1024.68,0.00018904,2]
[372900548,1752796246116,-1578.99,0.00018904,2]
[372900551,1752796246125,-1063.32,0.00018904,2]
[372900553,1752796246135,-1482.41,0.00018904,2]
[372900556,1752796246144,-2154.4,0.00018904,2]
[372900558,1752796246153,-460.0,0.00018904,2]
[372900560,1752796246162,-423.0,0.00018935,2]
[372900562,1752796246172,-801.0,0.00018965,2]
[372900564,1752796246181,-407.52802791,0.00019072,2]
[372900565,1752796246191,-160.0,0.00019135,2]
[372900567,1752796246201,-413.23,0.00019178,2]
[372900569,1752796246212,-475.26,0.00019178,2]
[372900571,1752796246221,-460.0,0.00019178,2]
[372900573,1752796246231,-460.0,0.00019178,2]
[372900575,1752796246240,-248.34584934,0.00019178,2]
[372900577,1752796246250,-151.0,0.00019178,2]
[372900579,1752796246259,-460.0,0.00019178,2]
[372900581,1752796246269,-1194.61,0.00019178,2]
[372900583,1752796246278,-460.0,0.00019178,2]
[372900585,1752796246288,-460.0,0.00019178,2]
[372900587,1752796246297,-2622.99,0.00019178,2]
[372900588,1752796246307,-927.19,0.00019178,2]
[372900590,1752796246319,-460.0,0.00019178,2]
[372900592,1752796246328,-500.0,0.00019178,2]
[372900594,1752796246337,-460.0,0.00019178,2]
[372900596,1752796246347,-496.21,0.00019178,2]
[372900598,1752796246357,-2043.46,0.00019178,2]
[372900600,1752796246367,-460.0,0.00019178,2]
[372900602,1752796246376,-1339.2,0.00019178,2]
[372900604,1752796246386,-460.0,0.00019178,2]
[372900606,1752796246396,-460.0,0.00019178,2]
[372900608,1752796246405,-460.0,0.00019178,2]
[372900609,1752796246415,-641.51,0.00019178,2]
[372900620,1752796246519,-1548.76,0.00019178,2]
[372900621,1752796246529,-460.0,0.00019178,2]
[372900623,1752796246540,-1390.78,0.00019178,2]
[372900625,1752796246550,-460.0,0.00019178,2]
[372900627,1752796246559,-460.0,0.00019178,2]
[372900629,1752796246570,-2635.32,0.00019178,2]
[372900631,1752796246581,-460.0,0.00019178,2]
[372900633,1752796246591,-460.0,0.00019178,2]
[372900635,1752796246600,-468.77,0.00019178,2]
[372900637,1752796246610,-4935.59,0.00019178,2]
[372900639,1752796246620,-684.76,0.00019178,2]
[372900641,1752796246629,-519.41589215,0.00019178,7]
[372900643,1752796246639,-257.71,0.00019178,2]
[372900645,1752796246649,-460.0,0.00019178,2]
[372900647,1752796246658,-460.0,0.00019178,2]
[372900648,1752796246667,-487.89,0.00019178,2]
[372900650,1752796246676,-460.0,0.00019178,2]
[372900652,1752796246687,-1024.68,0.00019178,2]
[372900654,1752796246697,-1578.99,0.00019178,2]
[372900656,1752796246706,-1063.32,0.00019178,2]
[372900658,1752796246716,-1482.41,0.00019178,2]
[372900659,1752796246725,-2154.4,0.00019178,2]
[372900660,1752796246735,-460.0,0.00019178,2]
[372900661,1752796246744,-177.327874,0.00019178,2]
[372900662,1752796246754,-666.0,0.00019178,2]
[372900663,1752796246763,-5000.0,0.00019178,2]
[372900664,1752796246772,-423.0,0.00019209,2]
[372900665,1752796246782,-801.0,0.00019239,2]
[372900666,1752796246792,-1040.68818754,0.00019256,2]
[372900667,1752796246801,-29104.65289131,0.00019329,2]
[372900668,1752796246812,-407.52802791,0.00019383,2]
[372900669,1752796246822,-151.0,0.000194,2]
[372900670,1752796246832,-500.0,0.00019442,2]
[372900671,1752796246842,-219.8559037,0.00019452,2]
[372900672,1752796246851,-475.26,0.00019452,2]
[372900673,1752796246861,-460.0,0.00019452,2]
[372900674,1752796246870,-460.0,0.00019452,2]
[372900675,1752796246879,-460.0,0.00019452,2]
[372900676,1752796246889,-1194.61,0.00019452,2]
[372900677,1752796246898,-187.6,0.00019452,2]
[372900678,1752796246907,-460.0,0.00019452,2]
[372900679,1752796246917,-2622.99,0.00019452,2]
[372900680,1752796246927,-927.19,0.00019452,2]
[372900681,1752796246936,-460.0,0.00019452,2]
[372900682,1752796246946,-460.0,0.00019452,2]
[372900683,1752796246955,-496.21,0.00019452,2]
[372900684,1752796246964,-2043.46,0.00019452,2]
[372900685,1752796246974,-460.0,0.00019452,2]
[372900686,1752796246983,-1339.2,0.00019452,2]
[372900687,1752796246993,-236.05,0.00019452,2]
[372900688,1752796247002,-460.0,0.00019452,2]
[372900689,1752796247011,-460.0,0.00019452,2]
[372900690,1752796247021,-641.51,0.00019452,2]
[372900691,1752796247031,-1548.76,0.00019452,2]
[372900692,1752796247040,-460.0,0.00019452,2]
[372900693,1752796247049,-1390.78,0.00019452,2]
[372900694,1752796247059,-460.0,0.00019452,2]
[372900696,1752796247070,-460.0,0.00019452,2]
[372900698,1752796247080,-2635.32,0.00019452,2]
[372900700,1752796247090,-460.0,0.00019452,2]
[372900701,1752796247099,-419.44221252,0.00019452,2]
[372900702,1752796247109,-468.77,0.00019452,2]
[372900703,1752796247118,-4935.59,0.00019452,2]
[372900704,1752796247127,-684.76,0.00019452,2]
[372900705,1752796247137,-460.0,0.00019452,2]
[372900706,1752796247146,-460.0,0.00019452,2]
[372900707,1752796247156,-460.0,0.00019452,2]
[372900708,1752796247166,-1024.68,0.00019452,2]
[372900709,1752796247175,-1578.99,0.00019452,2]
[372900710,1752796247184,-1063.32,0.00019452,2]
[372900711,1752796247196,-1482.41,0.00019452,2]
[372900712,1752796247206,-2154.4,0.00019452,2]
[372900713,1752796247215,-460.0,0.00019452,2]
[372900714,1752796247224,-284.3208167,0.00019456,2]
[372900715,1752796247234,-587.0,0.00019472,2]
[372900716,1752796247245,-501.03534537,0.00019474,2]
[372900717,1752796247254,-643.78665454,0.00019474,2]
[372900718,1752796247264,-500.0,0.00019474,2]
[372900719,1752796247274,-503.46839488,0.00019474,2]
[372900720,1752796247284,-500.0,0.00019474,2]
[372900721,1752796247294,-500.0,0.00019474,2]
[372900722,1752796247304,-500.0,0.00019474,2]
[372900723,1752796247314,-500.0,0.00019474,2]
[372900724,1752796247324,-375.97667728,0.00019474,2]
[372900725,1752796247334,-423.0,0.00019483,2]
[372900726,1752796247343,-370.80328516,0.00019507,2]
[372900727,1752796247352,-500.0,0.00019511,2]
[372900728,1752796247362,-801.0,0.00019513,2]
[372900729,1752796247371,-349.0,0.00019643,2]
[372900730,1752796247381,-260.0,0.00019683,2]
[372900731,1752796247391,-407.52802791,0.00019693,2]
[372900732,1752796247400,-475.26,0.00019726,2]
[372900733,1752796247410,-460.0,0.00019726,2]
[372900734,1752796247420,-177.68868711,0.00019726,2]
[372900735,1752796247431,-460.0,0.00019726,2]
[372900736,1752796247440,-1194.61,0.00019726,2]
[372900737,1752796247450,-465.1845957,0.00019726,2]
[372900738,1752796247460,-2622.99,0.00019726,2]
[372900739,1752796247470,-927.19,0.00019726,2]
[372900740,1752796247483,-460.0,0.00019726,2]
[372900741,1752796247493,-460.0,0.00019726,2]
[372900742,1752796247502,-496.21,0.00019726,2]
[372900743,1752796247512,-2043.46,0.00019726,2]
[372900744,1752796247523,-460.0,0.00019726,2]
[372900745,1752796247532,-1339.2,0.00019726,2]
[372900746,1752796247542,-460.0,0.00019726,2]
[372900747,1752796247551,-460.0,0.00019726,2]
[372900748,1752796247562,-641.51,0.00019726,2]
[372900749,1752796247572,-1548.76,0.00019726,2]
[372900750,1752796247582,-460.0,0.00019726,2]
[372900751,1752796247591,-1390.78,0.00019726,2]
[372900752,1752796247601,-460.0,0.00019726,2]
[372900753,1752796247611,-188.97,0.00019726,2]
[372900754,1752796247620,-2635.32,0.00019726,2]
[372900755,1752796247630,-460.0,0.00019726,2]
[372900756,1752796247640,-468.77,0.00019726,2]
[372900757,1752796247650,-4935.59,0.00019726,2]
[372900759,1752796247659,-684.76,0.00019726,2]
[372900760,1752796247669,-460.0,0.00019726,2]
[372900762,1752796247679,-460.0,0.00019726,2]
[372900763,1752796247689,-460.0,0.00019726,2]
[372900764,1752796247699,-1024.68,0.00019726,2]
[372900766,1752796247708,-1578.99,0.00019726,2]
[372900767,1752796247718,-1063.32,0.00019726,2]
[372900769,1752796247729,-1482.41,0.00019726,2]
[372900770,1752796247739,-2154.4,0.00019726,2]
[372900772,1752796247749,-460.0,0.00019726,2]
[372900773,1752796247759,-423.0,0.00019757,2]
[372900776,1752796247769,-801.0,0.00019787,2]
[372900777,1752796247778,-1000.0,0.0001999,2]
[372900779,1752796247788,-475.26,0.0002,2]
[372900781,1752796247797,-151.0,0.0002,2]
[372900784,1752796247807,-460.0,0.0002,2]
[372900786,1752796247818,-460.0,0.0002,2]
[372900788,1752796247829,-1194.61,0.0002,2]
[372900790,1752796247838,-2622.99,0.0002,2]
[372900791,1752796247848,-927.19,0.0002,2]
[372900794,1752796247858,-460.0,0.0002,2]
[372900795,1752796247868,-460.0,0.0002,2]
[372900797,1752796247877,-496.21,0.0002,2]
[372900800,1752796247887,-2043.46,0.0002,2]
[372900801,1752796247896,-460.0,0.0002,2]
[372900804,1752796247906,-1339.2,0.0002,2]
[372900806,1752796247916,-460.0,0.0002,2]
[372900808,1752796247926,-460.0,0.0002,2]
[372900809,1752796247935,-641.51,0.0002,2]
[372900811,1752796247944,-1548.76,0.0002,2]
[372900813,1752796247954,-460.0,0.0002,2]
[372900815,1752796247963,-1390.78,0.0002,2]
[372900817,1752796247972,-311.05,0.0002,2]
[372900820,1752796247982,-2635.32,0.0002,2]
[372900821,1752796247991,-287.38430456,0.0002,2]
[372900823,1752796248001,-468.77,0.0002,2]
[372900825,1752796248010,-4935.59,0.0002,2]
[372900828,1752796248020,-460.0,0.0002,2]
[372900830,1752796248031,-460.0,0.0002,2]
[372900832,1752796248040,-460.0,0.0002,2]
[372900833,1752796248049,-1024.68,0.0002,2]
[372900835,1752796248059,-1578.99,0.0002,2]
[372900837,1752796248070,-1063.32,0.0002,2]
[372900840,1752796248080,-1482.41,0.0002,2]
[372900841,1752796248090,-2154.4,0.0002,2]
[372900844,1752796248100,-460.0,0.0002,2]
[372900845,1752796248110,-407.52802791,0.00020003,2]
[372900847,1752796248120,-423.0,0.00020031,2]
[372900849,1752796248130,-801.0,0.00020061,2]
[372900851,1752796248140,-385.983945,0.00020187,2]
[372900853,1752796248149,-180.0,0.00020231,2]
[372900855,1752796248159,-475.26,0.00020273,2]
[372900857,1752796248169,-460.0,0.00020273,2]
[372900859,1752796248178,-460.0,0.00020273,2]
[372900861,1752796248187,-1194.61,0.00020273,2]
[372900863,1752796248197,-2622.99,0.00020273,2]
[372900865,1752796248207,-927.19,0.00020273,2]
[372900867,1752796248218,-460.0,0.00020273,2]
[372900869,1752796248228,-460.0,0.00020273,2]
[372900871,1752796248238,-496.21,0.00020273,2]
[372900873,1752796248248,-2043.46,0.00020273,2]
[372900875,1752796248259,-460.0,0.00020273,2]
[372900877,1752796248269,-1339.2,0.00020273,2]
[372900879,1752796248278,-460.0,0.00020273,2]
[372900881,1752796248288,-460.0,0.00020273,2]
[372900883,1752796248299,-641.51,0.00020273,2]
[372900885,1752796248309,-1548.76,0.00020273,2]
[372900887,1752796248322,-460.0,0.00020273,2]
[372900889,1752796248332,-1390.78,0.00020273,2]
[372900891,1752796248343,-2635.32,0.00020273,2]
[372900893,1752796248352,-468.77,0.00020273,2]
[372900895,1752796248362,-4935.59,0.00020273,2]
[372900897,1752796248373,-531.32933202,0.00020273,2]
[372900899,1752796248383,-460.0,0.00020273,2]
[372900901,1752796248392,-460.0,0.00020273,2]
[372900903,1752796248402,-1024.68,0.00020273,2]
[372900905,1752796248412,-1578.99,0.00020273,2]
[372900907,1752796248422,-1063.32,0.00020273,2]
[372900909,1752796248433,-1482.41,0.00020273,2]
[372900911,1752796248443,-2154.4,0.00020273,2]
[372900913,1752796248453,-460.0,0.00020273,2]
[372900915,1752796248463,-423.0,0.00020305,2]
[372900917,1752796248472,-1035.35154063,0.00020305,2]
[372900919,1752796248483,-407.52802791,0.00020314,3]
[372900921,1752796248494,-801.0,0.00020335,2]
[372900923,1752796248504,-207.4,0.00020428,2]
[372900925,1752796248514,-151.0,0.00020428,2]
[372900927,1752796248525,-151.0,0.00020428,2]
[372900929,1752796248535,-500.0,0.00020428,2]
[372900931,1752796248546,-151.0,0.00020428,2]
[372900933,1752796248556,-500.0,0.00020428,2]
[372900935,1752796248569,-151.0,0.00020428,2]
[372900937,1752796248579,-500.0,0.00020428,2]
[372900939,1752796248589,-151.0,0.00020428,2]
[372900941,1752796248599,-151.0,0.00020428,2]
[372900943,1752796248609,-252.61929863,0.00020428,2]
[372900945,1752796248618,-151.0,0.00020428,2]
[372900947,1752796248630,-151.0,0.00020428,2]
[372900949,1752796248640,-151.0,0.00020428,2]
[372900951,1752796248650,-151.0,0.00020428,2]
[372900953,1752796248660,-151.0,0.00020428,2]
[372900955,1752796248669,-151.0,0.00020428,2]
[372900957,1752796248679,-151.0,0.00020428,2]
[372900959,1752796248689,-151.0,0.00020428,2]
[372900961,1752796248699,-151.0,0.00020428,2]
[372900973,1752796248803,-151.0,0.00020428,2]
[372900975,1752796248814,-151.0,0.00020428,2]
[372900977,1752796248823,-151.0,0.00020428,2]
[372900979,1752796248833,-151.0,0.00020428,2]
[372900981,1752796248844,-151.0,0.00020428,2]
[372900983,1752796248854,-151.0,0.00020428,2]
[372900985,1752796248864,-151.0,0.00020428,2]
[372900987,1752796248874,-151.0,0.00020428,2]
[372900989,1752796248883,-25000.0,0.00020428,2]
[372900991,1752796248893,-3177.68653862,0.00020428,2]
[372900993,1752796248903,-151.0,0.00020428,2]
[372900995,1752796248913,-217.13184513,0.00020428,2]
[372900997,1752796248923,-151.0,0.000205,4]
[372900999,1752796248933,-475.26,0.00020547,2]
[372901001,1752796248943,-185.4922192,0.00020547,2]
[372901003,1752796248953,-460.0,0.00020547,2]
[372901005,1752796248963,-1194.61,0.00020547,2]
[372901007,1752796248973,-2622.99,0.00020547,2]
[372901009,1752796248982,-927.19,0.00020547,2]
[372901011,1752796248992,-460.0,0.00020547,2]
[372901013,1752796249002,-460.0,0.00020547,2]
[372901015,1752796249011,-496.21,0.00020547,2]
[372901017,1752796249021,-2043.46,0.00020547,2]
[372901019,1752796249030,-460.0,0.00020547,2]
[372901021,1752796249039,-1339.2,0.00020547,2]
[372901023,1752796249048,-460.0,0.00020547,2]
[372901025,1752796249058,-460.0,0.00020547,2]
[372901027,1752796249067,-641.51,0.00020547,2]
[372901029,1752796249076,-1548.76,0.00020547,2]
[372901031,1752796249086,-460.0,0.00020547,2]
[372901033,1752796249096,-1390.78,0.00020547,2]
[372901035,1752796249105,-2635.32,0.00020547,2]
[372901037,1752796249114,-468.77,0.00020547,2]
[372901039,1752796249124,-4935.59,0.00020547,2]
[372901041,1752796249133,-472.07011707,0.00020547,2]
[372901043,1752796249142,-460.0,0.00020547,2]
[372901045,1752796249152,-1024.68,0.00020547,2]
[372901047,1752796249162,-1578.99,0.00020547,2]
[372901049,1752796249171,-1063.32,0.00020547,2]
[372901051,1752796249182,-1482.41,0.00020547,2]
[372901053,1752796249192,-2154.4,0.00020547,2]
[372901055,1752796249201,-181.78,0.00020547,2]
[372901057,1752796249211,-1040.68818754,0.00020578,2]
[372901059,1752796249221,-423.0,0.00020579,2]
[372901061,1752796249231,-801.0,0.00020609,2]
[372901063,1752796249240,-407.52802791,0.00020624,3]
[372901065,1752796249250,-475.26,0.00020821,2]
[372901067,1752796249259,-460.0,0.00020821,2]
[372901069,1752796249269,-1194.61,0.00020821,2]
[372901071,1752796249279,-2622.99,0.00020821,2]
[372901073,1752796249289,-927.19,0.00020821,2]
[372901075,1752796249299,-460.0,0.00020821,2]
[372901077,1752796249308,-460.0,0.00020821,2]
[372901079,1752796249319,-496.21,0.00020821,2]
[372901081,1752796249328,-2043.46,0.00020821,2]
[372901083,1752796249338,-367.41407736,0.00020821,2]
[372901085,1752796249348,-1339.2,0.00020821,2]
[372901087,1752796249358,-460.0,0.00020821,2]
[372901089,1752796249367,-460.0,0.00020821,2]
[372901091,1752796249377,-641.51,0.00020821,2]
[372901093,1752796249388,-1548.76,0.00020821,2]
[372901095,1752796249398,-460.0,0.00020821,2]
[372901097,1752796249407,-1390.78,0.00020821,2]
[372901099,1752796249417,-2635.32,0.00020821,2]
[372901101,1752796249426,-468.77,0.00020821,2]
[372901103,1752796249437,-4935.59,0.00020821,2]
[372901105,1752796249446,-460.0,0.00020821,2]
[372901107,1752796249456,-1024.68,0.00020821,2]
[372901109,1752796249465,-1578.99,0.00020821,2]
[372901111,1752796249475,-1063.32,0.00020821,2]
[372901113,1752796249485,-1482.41,0.00020821,2]
[372901115,1752796249499,-2154.4,0.00020821,2]
[372901117,1752796249508,-423.0,0.00020853,2]
[372901119,1752796249519,-801.0,0.00020883,2]
[372901121,1752796249528,-1439.61129952,0.00020884,2]
[372901123,1752796249537,-407.52802791,0.00020934,4]
[372901125,1752796249547,-25000.0,0.00020976,2]
[372901127,1752796249556,-151.0,0.00021,4]
[372901129,1752796249566,-178.57088129,0.0002101,2]
[372901131,1752796249575,-691.242,0.0002101,2]
[372901133,1752796249585,-475.26,0.00021095,2]
[372901135,1752796249594,-460.0,0.00021095,2]
[372901137,1752796249603,-1194.61,0.00021095,2]
[372901139,1752796249612,-2622.99,0.00021095,2]
[372901141,1752796249621,-927.19,0.00021095,2]
[372901143,1752796249631,-279.67,0.00021095,2]
[372901145,1752796249640,-326.96,0.00021095,2]
[372901147,1752796249649,-2043.46,0.00021095,2]
[372901148,1752796249659,-496.21,0.00021095,2]
[372901150,1752796249668,-1339.2,0.00021095,2]
[372901152,1752796249678,-460.0,0.00021095,2]
[372901155,1752796249687,-261.27,0.00021095,2]
[372901156,1752796249697,-641.51,0.00021095,2]
[372901158,1752796249706,-1548.76,0.00021095,2]
[372901161,1752796249715,-460.0,0.00021095,2]
[372901162,1752796249725,-1390.78,0.00021095,2]
[372901164,1752796249734,-2635.32,0.00021095,2]
[372901167,1752796249744,-468.77,0.00021095,2]
[372901169,1752796249755,-4935.59,0.00021095,2]
[372901170,1752796249764,-460.0,0.00021095,2]
[372901172,1752796249773,-1024.68,0.00021095,2]
[372901175,1752796249783,-1578.99,0.00021095,2]
[372901176,1752796249792,-1063.32,0.00021095,2]
[372901178,1752796249802,-1482.41,0.00021095,2]
[372901181,1752796249812,-2154.4,0.00021095,2]
[372901183,1752796249823,-423.0,0.00021127,2]
[372901185,1752796249831,-5000.0,0.00021137,2]
[372901187,1752796249842,-801.0,0.00021157,2]
[372901188,1752796249852,-407.52802791,0.00021245,4]
[372901190,1752796249862,-823.0,0.00021283,2]
[372901192,1752796249871,-475.26,0.00021369,2]
[372901194,1752796249882,-460.0,0.00021369,2]
[372901196,1752796249892,-1194.61,0.00021369,2]
[372901198,1752796249901,-2622.99,0.00021369,2]
[372901200,1752796249910,-927.19,0.00021369,2]
[372901202,1752796249920,-2043.46,0.00021369,2]
[372901204,1752796249929,-496.21,0.00021369,2]
[372901206,1752796249939,-1339.2,0.00021369,2]
[372901209,1752796249949,-460.0,0.00021369,2]
[372901210,1752796249958,-641.51,0.00021369,2]
[372901213,1752796249968,-1548.76,0.00021369,2]
[372901215,1752796249978,-552.87,0.00021369,2]
[372901216,1752796249987,-1390.78,0.00021369,2]
[372901219,1752796249998,-2635.32,0.00021369,2]
[372901221,1752796250007,-468.77,0.00021369,2]
[372901222,1752796250017,-4935.59,0.00021369,2]
[372901224,1752796250026,-1024.68,0.00021369,2]
[372901226,1752796250036,-1578.99,0.00021369,2]
[372901228,1752796250047,-1063.32,0.00021369,2]
[372901231,1752796250056,-1482.41,0.00021369,2]
[372901233,1752796250067,-2154.4,0.00021369,2]
[372901235,1752796250077,-423.0,0.00021401,2]
[372901237,1752796250086,-801.0,0.00021431,2]
[372901239,1752796250096,-500.0,0.00021473,2]
[372901241,1752796250105,-4567.90299988,0.000215,2]
[372901243,1752796250115,-27754.3631069,0.000215,2]
[372901249,1752796250227,-460.0,0.00016438,2]
[372901251,1752796250238,-460.0,0.00016438,2]
[372901253,1752796250247,-460.0,0.00016712,2]
[372901255,1752796250258,-2203.2,0.000215,2]
[372901279,1752796250481,-35468.04711622,0.000215,2]
[372901281,1752796250499,-846.32392378,0.000215,2]
[372901284,1752796250517,-460.0,0.00016438,2]
[372901286,1752796250527,-4884.03757378,0.000215,2]
[372901288,1752796250538,-289.54641168,0.000215,2]
[372901295,1752796250594,-430.01438531,0.00016712,2]
[372901297,1752796250604,-272.0590538,0.000215,2]
[372901299,1752796250615,-3651.88656089,0.000215,2]
[372901301,1752796250626,-460.0,0.000215,2]
[372901307,1752796250671,-7058.30880175,0.000215,2]
[372901310,1752796250683,-12591.423209,0.000215,2]
[372902043,1752796327209,347.38555,0.00013699,2]
[372902045,1752796664811,503.2,0.00027397,120]
[372902046,1752796795392,24900.0,0.00015592,2]
[372902048,1752796919683,-275.86516894,0.00016159,2]
[372902049,1752796927504,-73.13483106,0.00016159,2]
[372902051,1752796953108,150.0,0.0001548,2]
[372902052,1752797145161,-192.37441598,0.00016437,2]
[372902054,1752797227096,-159.99038696,0.00016437,2]
[372902055,1752797237127,-140.00961304,0.00016437,2]
[372902056,1752797237152,-226.46671428,0.00016437,2]
[372902095,1752797432028,-300.0,0.00016436,2]
[372902096,1752797432038,-1200.0,0.00016436,2]
[372902097,1752797432048,-167.0,0.00016437,2]
[372902098,1752797432059,-500.0,0.00016437,2]
[372902099,1752797432069,-305.18209713,0.00016437,2]
[372902100,1752797432082,-6.1561334,0.00016437,2]
[372902101,1752797432091,-277.95391781,0.00016437,2]
[372902102,1752797432101,-237.99559617,0.00016437,2]
[372902103,1752797432111,-331.75634873,0.00016437,2]
[372902104,1752797432121,-432.90418662,0.00016437,2]
[372902105,1752797432131,-500.0,0.00016437,2]
[372902106,1752797432141,-500.0,0.00016437,2]
[372902107,1752797432151,-500.0,0.00016437,2]
[372902108,1752797432160,-500.0,0.00016437,2]
[372902109,1752797432170,-388.72405625,0.00016437,2]
[372902110,1752797432180,-460.0,0.00016438,2]
[372902111,1752797432190,-460.0,0.00016438,2]
[372902112,1752797432199,-460.0,0.00016438,2]
[372902113,1752797432208,-460.0,0.00016438,2]
[372902114,1752797432217,-460.0,0.00016438,2]
[372902115,1752797432227,-460.0,0.00016438,2]
[372902116,1752797432236,-460.0,0.00016438,2]
[372902117,1752797432245,-192.43634248,0.00016438,2]
[372902118,1752797432257,-267.56365752,0.00016438,2]
[372902119,1752797432267,-243.33634248,0.00016438,2]
[372902120,1752797432282,-216.66365752,0.00016438,2]
[372902121,1752797432294,-460.0,0.00016438,2]
[372902122,1752797432305,-504.39225402,0.00016438,2]
[372902123,1752797432316,-460.0,0.00016438,2]
[372902124,1752797432326,-460.0,0.00016438,2]
[372902125,1752797432335,-460.0,0.00016438,2]
[372902126,1752797432344,-460.0,0.00016438,2]
[372902127,1752797432354,-460.0,0.00016438,2]
[372902128,1752797432363,-460.0,0.00016438,2]
[372902129,1752797432372,-58.4812801,0.00016438,2]
[372902130,1752797432392,-401.5187199,0.00016438,2]
[372902131,1752797432401,-460.0,0.00016438,2]
[372902132,1752797432410,-387.83177659,0.00016438,2]
[372902137,1752797437923,-72.16822341,0.00016438,2]
[372902139,1752797437934,-460.0,0.00016438,2]
[372902141,1752797437943,-460.0,0.00016438,2]
[372902143,1752797437952,-460.0,0.00016438,2]
[372902145,1752797437962,-475.18521446,0.00016438,2]
[372902147,1752797437971,-460.0,0.00016438,2]
[372902148,1752797437980,-460.0,0.00016438,2]
[372902149,1752797437990,-460.0,0.00016438,2]
[372902150,1752797437999,-279.80727738,0.00016438,2]
[372902152,1752797438384,-180.19272262,0.00016438,2]
[372902153,1752797438394,-460.0,0.00016438,2]
[372902154,1752797438403,-460.0,0.00016438,2]
[372902155,1752797438413,-573.51,0.00016438,2]
[372902156,1752797438422,-460.0,0.00016438,2]
[372902157,1752797438432,-384.19,0.00016438,2]
[372902158,1752797438442,-460.0,0.00016438,2]
[372902159,1752797438451,-460.0,0.00016438,2]